bitfinex/quotes_ETHUSD_20240915
["timestamp","ask_amount","ask_price","bid_price","bid_amount"]
[1726429266502,4.51040888,2380.3,2380.0,2.4593]
[1726429267275,4.43550514,2380.3,2380.0,2.4593]
[1726429267811,4.20133,2380.2,2380.0,2.4593]
[1726429268113,0.23442371,2380.1,2380.0,2.4593]
[1726429272379,4.27608374,2380.3,2380.0,2.4593]
[1726429272901,0.23442371,2380.2,2380.0,2.709158]
[1726429273203,4.20039,2380.8,2380.1,0.63402294]
[1726429273425,4.20027,2380.8,2380.3,2.4216]
[1726429273632,4.43487954,2380.7,2380.3,2.4216]
[1726429274455,0.23439954,2380.7,2380.3,2.4216]
[1726429274801,0.23446396,2380.6,2380.3,2.4216]
[1726429275198,4.20027,2380.8,2380.3,2.4216]
[1726429275411,0.23446396,2380.5,2380.3,2.71876]
[1726429275624,8.39995,2381.0,2380.3,2.71876]
[1726429275824,0.23446396,2380.4,2380.3,2.71876]
[1726429276040,0.23210349,2380.4,2380.3,2.71876]
[1726429276433,4.20038,2380.8,2380.3,2.71876]
[1726429276635,4.20038,2380.8,2380.3,2.4216]
[1726429276636,0.23210349,2380.4,2380.3,2.4216]
[1726429277105,0.07490374,2380.8,2380.3,2.4216]
[1726429277850,0.23210349,2380.7,2380.3,2.4216]
[1726429278157,0.07490374,2380.8,2380.3,2.4216]
[1726429278308,0.23210349,2380.6,2380.3,2.4216]
[1726429278503,0.07490374,2380.8,2380.3,2.4216]
[1726429278753,0.23210349,2380.5,2380.3,2.4216]
[1726429278920,4.20048,2380.7,2380.3,2.4216]
[1726429278921,4.27538374,2380.7,2380.3,2.4216]
[1726429279127,0.23210349,2380.4,2380.3,2.4216]
[1726429280019,4.27538374,2380.7,2380.3,2.4216]
[1726429280243,0.23210349,2380.6,2380.3,2.4216]
[1726429281345,4.27587374,2380.5,2380.0,2.4216]
[1726429281545,4.27582374,2380.5,2380.0,2.4216]
[1726429281720,8.47672374,2380.5,2380.0,2.4216]
[1726429281905,0.30697503,2380.4,2380.0,2.4216]
[1726429282421,0.23207129,2380.4,2380.0,2.4216]
[1726429282602,0.30697503,2380.4,2380.0,2.4216]
[1726429283551,0.23207129,2380.4,2380.0,2.667688]
[1726429284731,0.30697503,2380.4,2380.0,2.667688]
[1726429285453,0.23207129,2380.4,2380.0,2.667688]
[1726429286319,0.23207129,2380.4,2380.0,2.4216]
[1726429287122,0.07490374,2380.3,2380.0,2.4216]
[1726429287325,0.07490374,2380.3,2379.9,0.91565737]
[1726429287326,4.5080344,2380.3,2379.9,0.03928]
[1726429287559,4.43313066,2380.3,2379.9,0.03928]
[1726429289433,0.07490374,2380.2,2379.9,0.03928]
[1726429290155,0.23197066,2380.1,2379.9,0.03928]
[1726429292284,4.27658374,2380.0,2379.9,0.03928]
[1726429292492,0.30678987,2380.0,2379.9,0.03928]
[1726429294692,0.23188613,2380.0,2379.9,0.03928]
[1726429295495,0.30678987,2380.0,2379.9,0.03928]
[1726429296569,0.23188613,2380.0,2379.9,0.03928]
[1726429296983,0.30678987,2380.0,2379.9,0.03928]
[1726429297657,4.95931086,2380.0,2379.9,0.03928]
[1726429298198,9.16099086,2380.0,2379.9,0.03928]
[1726429300998,13.36267086,2380.0,2379.9,0.03928]
[1726429303184,16.36267086,2380.0,2379.9,0.03928]
[1726429306068,16.36267086,2380.0,2379.9,0.03831104]
[1726429317533,12.08608712,2380.0,2379.9,0.03831104]
[1726429317701,11.63524613,2380.0,2379.9,0.03831104]
[1726429318792,4.43356613,2380.0,2379.9,0.03831104]
[1726429320412,8.63524613,2380.0,2379.9,0.03831104]
[1726429320601,8.71014987,2380.0,2379.9,0.03831104]
[1726429329509,4.50846987,2380.0,2379.9,0.03831104]
[1726429331154,8.71014987,2380.0,2379.9,0.03831104]
[1726429337171,8.71014987,2380.0,2379.9,2.38831104]
[1726429337396,4.43356613,2380.0,2379.9,2.62714214]
[1726429338798,4.43356613,2380.0,2379.9,2.38831104]
[1726429342797,0.23188613,2380.0,2379.9,2.38831104]
[1726429343299,4.20138,2380.2,2379.9,2.38831104]
[1726429343491,0.23139891,2380.0,2379.9,2.38831104]
[1726429343962,4.20124,2380.3,2379.9,2.38831104]
[1726429344166,0.23139891,2380.2,2379.9,2.62714214]
[1726429344686,4.27579374,2380.5,2379.9,2.62714214]
[1726429344855,0.23142711,2380.1,2379.9,2.62714214]
[1726429345196,4.27579374,2380.5,2380.1,2.35]
[1726429345408,4.20089,2380.5,2380.1,2.35]
[1726429345965,4.20099,2380.4,2380.1,2.35]
[1726429348385,4.22606374,2380.3,2380.1,2.35]
[1726429348624,4.15116,2380.3,2380.1,2.35]
[1726429350709,4.20132,2380.2,2380.1,2.35]
[1726429350910,0.07490374,2380.2,2380.1,2.35]
[1726429351822,0.07490374,2380.2,2379.9,0.03831104]
[1726429351823,4.27622374,2380.2,2379.9,2.38831104]
[1726429351989,4.69883011,2380.2,2379.9,2.38831104]
[1726429352183,0.07490374,2380.1,2379.9,2.38831104]
[1726429353123,4.20168,2380.0,2379.9,2.38831104]
[1726429357029,4.43310711,2380.0,2379.9,2.38831104]
[1726429358029,4.43310711,2380.0,2379.9,2.62714214]
[1726429358030,0.23142711,2380.0,2379.9,2.62714214]
[1726429358539,0.23142711,2380.0,2379.9,2.38831104]
[1726429358540,0.3064557,2380.0,2379.9,2.38831104]
[1726429359333,0.23155196,2380.0,2379.9,2.38831104]
[1726429366852,8.40279,2380.2,2379.9,2.38831104]
[1726429367006,0.2315439,2380.0,2379.9,2.38831104]
[1726429367205,4.20151,2380.1,2379.9,2.38831104]
[1726429367405,0.2315439,2380.0,2379.9,2.38831104]
[1726429381728,4.20121,2380.3,2379.9,2.38831104]
[1726429382044,0.23160429,2380.2,2380.0,0.2388311]
[1726429382240,0.23160429,2380.2,2380.1,2.2703]
[1726429382569,0.23164859,2380.2,2380.1,2.2703]
[1726429382868,4.20106,2380.4,2380.1,2.2703]
[1726429382869,8.40214,2380.4,2380.1,2.2703]
[1726429383037,0.23164859,2380.2,2380.1,2.2703]
[1726429383240,8.40214,2380.4,2380.1,2.2703]
[1726429383428,0.23164859,2380.2,2380.1,2.2703]
[1726429383632,8.40214,2380.4,2380.1,2.2703]
[1726429383867,0.23164859,2380.2,2380.1,2.2703]
[1726429384039,8.40214,2380.4,2380.1,2.2703]
[1726429384572,0.23164859,2380.3,2380.1,2.2703]
[1726429387659,4.43280859,2380.3,2380.1,2.2703]
[1726429390670,0.23164859,2380.3,2380.1,2.2703]
[1726429390880,4.43283859,2380.3,2380.1,2.52504421]
[1726429391263,4.43283859,2380.3,2380.1,2.2703]
[1726429396155,4.20132,2380.2,2380.1,2.2703]
[1726429396792,4.4303666,2380.2,2380.1,2.2703]
[1726429399999,0.2290466,2380.2,2380.1,2.2703]
[1726429400181,4.20098,2380.4,2380.1,2.2703]
[1726429400374,0.22416234,2380.3,2380.2,0.22703]
[1726429401110,0.22416234,2380.3,2380.1,2.2703]
[1726429401882,8.40151,2380.6,2380.1,2.2703]
[1726429402075,0.22430727,2380.2,2380.1,2.2703]
[1726429402275,8.40151,2380.6,2380.1,2.2703]
[1726429402476,4.20072,2380.6,2380.3,2.379]
[1726429403375,8.40148,2380.6,2380.3,2.379]
[1726429403587,8.40145,2380.6,2380.3,2.379]
[1726429408109,4.20081,2380.5,2380.3,2.379]
[1726429411940,4.20097,2380.4,2380.3,2.379]
[1726429412089,4.20133,2380.2,2380.0,2.379]
[1726429412290,4.20133,2380.2,2379.9,0.03831104]
[1726429412291,4.27640374,2380.1,2379.9,0.03831104]
[1726429412925,4.20133,2380.2,2379.9,0.03831104]
[1726429413078,4.20133,2380.2,2380.0,2.379]
[1726429413279,4.20106,2380.4,2380.0,2.379]
[1726429414483,4.20089,2380.5,2380.2,2.3329]
[1726429414697,8.40179,2380.5,2380.2,2.3329]
[1726429414999,4.20099,2380.4,2380.2,2.3329]
[1726429415383,4.20115,2380.3,2380.0,2.3329]
[1726429416084,0.07490374,2380.2,2380.0,2.3329]
[1726429416996,0.22130322,2380.1,2380.0,2.3329]
[1726429421363,4.42280322,2380.1,2380.0,2.3329]
[1726429421585,4.20168,2380.0,2379.9,0.03831104]
[1726429421754,4.42294299,2380.0,2379.9,0.03831104]
[1726429422960,8.62462299,2380.0,2379.9,0.03831104]
[1726429424285,12.82630299,2380.0,2379.9,0.03831104]
[1726429424491,13.80504731,2380.0,2379.9,0.03831104]
[1726429429696,18.00672731,2380.0,2379.9,0.03831104]
[1726429432360,13.80504731,2380.0,2379.9,0.03831104]
[1726429449782,8.62462299,2380.0,2379.9,2.47971104]
[1726429452771,4.42294299,2380.0,2379.9,2.47971104]
[1726429453699,0.22126299,2380.0,2379.9,2.47971104]
[1726429454116,4.20143,2380.2,2379.9,2.47971104]
[1726429454268,4.20143,2380.2,2380.1,2.3989]
[1726429454773,4.2012,2380.3,2380.1,2.3989]
[1726429454973,4.20132,2380.2,2380.1,2.3989]
[1726429456672,4.2012,2380.3,2380.1,2.3989]
[1726429456906,8.40247,2380.3,2380.1,2.3989]
[1726429457214,8.40247,2380.3,2380.1,2.66741821]
[1726429460403,4.20132,2380.2,2380.1,2.66741821]
[1726429461923,4.41766653,2380.2,2380.1,2.66741821]
[1726429462335,8.69389027,2380.2,2380.1,2.3989]
[1726429463544,8.61898653,2380.2,2380.1,2.3989]
[1726429478669,4.20168,2380.0,2379.9,2.49671104]
[1726429478956,4.49261137,2380.0,2379.9,2.49671104]
[1726429481541,4.41770763,2380.0,2379.9,2.49671104]
[1726429484783,8.69429137,2380.0,2379.9,2.49671104]
[1726429484990,8.61938763,2380.0,2379.9,2.49671104]
[1726429485279,9.48132639,2380.0,2379.9,2.49671104]
[1726429486338,8.61938763,2380.0,2379.9,2.49671104]
[1726429490650,4.41770763,2380.0,2379.9,2.49671104]
[1726429491148,4.49261137,2380.0,2379.9,2.49671104]
[1726429491464,8.61938763,2380.0,2379.9,2.49671104]
[1726429492064,4.41770763,2380.0,2379.9,2.49671104]
[1726429492373,8.61938763,2380.0,2379.9,2.49671104]
[1726429498915,4.41770763,2380.0,2379.9,2.49671104]
[1726429500103,0.21602763,2380.0,2379.9,2.74638214]
[1726429500670,4.20091,2380.5,2379.9,2.74638214]
[1726429500917,4.41690225,2380.4,2379.9,2.74638214]
[1726429501208,4.41690225,2380.4,2380.1,2.4753]
[1726429501407,0.21582225,2380.4,2380.1,2.4753]
[1726429502006,4.41681225,2380.4,2380.1,2.4753]
[1726429502567,4.20117,2380.3,2380.1,2.4753]
[1726429503042,0.21492165,2380.2,2380.1,2.4753]
[1726429503412,4.20117,2380.3,2380.1,2.4753]
[1726429503643,0.21492165,2380.2,2380.1,2.4753]
[1726429504005,4.20117,2380.3,2380.1,2.4753]
[1726429504205,0.21492165,2380.2,2380.1,2.4753]
[1726429504635,4.20117,2380.3,2380.1,2.4753]
[1726429504843,0.21492165,2380.2,2380.1,2.4753]
[1726429505200,4.20117,2380.3,2380.1,2.4753]
[1726429505542,0.21492165,2380.2,2380.1,2.4753]
[1726429505902,4.20117,2380.3,2380.1,2.4753]
[1726429506117,0.21492165,2380.2,2380.1,2.4753]
[1726429506435,0.21492165,2380.2,2380.1,2.75412493]
[1726429506666,4.20117,2380.3,2380.1,2.75412493]
[1726429506894,0.21492165,2380.2,2380.1,2.4753]
[1726429507051,4.41624165,2380.2,2380.1,2.4753]
[1726429507360,0.21509077,2380.2,2380.1,2.4753]
[1726429507761,4.20117,2380.3,2380.1,2.4753]
[1726429507934,0.21508272,2380.2,2380.1,2.4753]
[1726429508468,4.20117,2380.3,2380.1,2.4753]
[1726429508647,0.21508272,2380.2,2380.1,2.4753]
[1726429509057,4.20117,2380.3,2380.1,2.4753]
[1726429509235,0.21508272,2380.2,2380.1,2.4753]
[1726429509622,4.20117,2380.3,2380.1,2.4753]
[1726429509937,0.21508272,2380.2,2380.1,2.4753]
[1726429510385,6.20117,2380.3,2380.1,2.4753]
[1726429510555,0.21507467,2380.2,2380.1,2.4753]
[1726429511070,6.20117,2380.3,2380.1,2.4753]
[1726429511365,0.21509883,2380.2,2380.1,2.4753]
[1726429511873,6.20117,2380.3,2380.1,2.4753]
[1726429512077,4.20168,2380.0,2379.9,2.51361104]
[1726429512376,4.41676275,2380.0,2379.9,0.03831104]
[1726429512891,4.49166649,2380.0,2379.9,0.03831104]
[1726429513550,9.50174451,2380.0,2379.9,0.03831104]
[1726429513740,8.69334649,2380.0,2379.9,0.03831104]
[1726429531782,8.75342407,2380.0,2379.9,0.03831104]
[1726429538434,8.75342407,2380.0,2379.9,2.37151104]
[1726429539671,8.67852033,2380.0,2379.9,2.37151104]
[1726429555310,4.47684033,2380.0,2379.9,2.37151104]
[1726429556612,0.27516033,2380.0,2379.9,2.60866214]
[1726429557012,6.20125,2380.3,2379.9,2.60866214]
[1726429557416,0.2731853,2380.2,2379.9,2.60866214]
[1726429557830,6.20125,2380.3,2379.9,2.60866214]
[1726429558036,0.2731853,2380.1,2380.0,2.74966621]
[1726429558203,4.20135,2380.2,2380.0,2.74966621]
[1726429558536,0.2731853,2380.1,2380.0,2.74966621]
[1726429561335,4.20168,2380.0,2379.9,0.03831104]
[1726429561548,0.27326197,2380.0,2379.9,0.03831104]
[1726429561750,4.47494197,2380.0,2379.9,2.52711104]
[1726429565662,0.27326197,2380.0,2379.9,2.52711104]
[1726429565961,0.27326197,2380.0,2379.9,2.77982214]
[1726429572652,0.27326197,2380.0,2379.9,2.52711104]
[1726429572653,4.47494197,2380.0,2379.9,2.52711104]
[1726429574880,0.27326197,2380.0,2379.9,2.52711104]
[1726429575788,4.47494197,2380.0,2379.9,2.52711104]
[1726429577651,0.27326197,2380.0,2379.9,2.52711104]
[1726429577855,0.27326197,2380.0,2379.9,2.77982214]
[1726429578893,4.47494197,2380.0,2379.9,2.77982214]
[1726429579195,4.47494197,2380.0,2379.9,2.52711104]
[1726429582275,0.27326197,2380.0,2379.9,2.52711104]
[1726429583972,0.27326197,2380.0,2379.9,3.46815137]
[1726429584195,2.0,2380.3,2379.9,2.52711104]
[1726429584196,4.20133,2380.2,2379.9,2.52711104]
[1726429584511,6.20115,2380.3,2380.0,0.34034884]
[1726429585312,6.20115,2380.3,2379.9,2.52711104]
[1726429589236,4.20138,2380.2,2379.9,2.52711104]
[1726429591432,6.20115,2380.3,2379.9,2.52711104]
[1726429592544,10.4024,2380.3,2379.9,2.52711104]
[1726429593235,6.20115,2380.3,2379.9,2.52711104]
[1726429593530,6.20115,2380.3,2379.9,2.86745988]
[1726429596246,2.0,2380.3,2379.9,2.86745988]
[1726429596915,6.20119,2380.3,2379.9,2.86745988]
[1726429597105,6.20119,2380.3,2379.9,2.52711104]
[1726429597106,0.27343947,2380.2,2379.9,2.52711104]
[1726429597305,6.20119,2380.3,2379.9,2.52711104]
[1726429597502,0.27343947,2380.2,2379.9,2.52711104]
[1726429598034,6.20119,2380.3,2379.9,2.52711104]
[1726429598035,0.27343947,2380.1,2379.9,2.52711104]
[1726429598373,6.20119,2380.3,2379.9,2.52711104]
[1726429598699,0.27354033,2380.2,2379.9,2.52711104]
[1726429599235,0.27354033,2380.1,2379.9,2.52711104]
[1726429599526,6.20119,2380.3,2379.9,2.52711104]
[1726429599846,0.27354033,2380.2,2379.9,2.52711104]
[1726429599999,0.27354033,2380.2,2379.9,2.86745988]
[1726429600337,6.20119,2380.3,2379.9,2.86745988]
[1726429600818,0.27352823,2380.2,2379.9,2.86745988]
[1726429601196,6.20119,2380.3,2379.9,2.86745988]
[1726429601393,0.27352823,2380.1,2379.9,2.52711104]
[1726429601689,0.27352823,2380.0,2379.9,2.52711104]
[1726429602095,10.40244,2380.3,2379.9,2.52711104]
[1726429602330,6.20119,2380.3,2379.9,2.52711104]
[1726429602540,4.20167,2380.1,2379.9,2.52711104]
[1726429602897,0.27352823,2380.0,2379.9,2.52711104]
[1726429603797,4.20142,2380.2,2379.9,2.52711104]
[1726429603999,0.27350402,2380.0,2379.9,2.52711104]
[1726429604195,6.20117,2380.3,2379.9,2.52711104]
[1726429604832,0.27349999,2380.2,2379.9,2.52711104]
[1726429605002,0.27349999,2380.2,2379.9,3.40348841]
[1726429605200,6.20117,2380.3,2380.0,2.3361]
[1726429605506,6.20117,2380.3,2380.0,0.70541545]
[1726429605703,6.20117,2380.3,2379.9,0.03831104]
[1726429606036,0.27349999,2380.2,2380.0,2.3361]
[1726429606540,0.27349999,2380.1,2380.0,2.3361]
[1726429606898,6.20117,2380.3,2380.0,2.3361]
[1726429607247,6.20117,2380.3,2380.0,2.66117884]
[1726429607401,0.27349999,2380.2,2380.0,2.66117884]
[1726429607797,6.20117,2380.3,2380.0,2.66117884]
[1726429608041,0.27349999,2380.1,2380.0,2.66117884]
[1726429608241,6.20117,2380.3,2380.0,2.66117884]
[1726429608447,0.27349999,2380.1,2380.0,2.66117884]
[1726429608634,6.20117,2380.3,2380.0,2.66117884]
[1726429608809,0.27349999,2380.1,2380.0,2.66117884]
[1726429609000,6.20117,2380.3,2380.0,2.66117884]
[1726429609204,0.27287999,2380.1,2380.0,2.66117884]
[1726429609405,2.0,2380.3,2380.0,2.66117884]
[1726429609607,2.0,2380.3,2380.2,2.3361]
[1726429612134,2.27296066,2380.3,2380.2,2.3361]
[1726429614519,2.27296066,2380.3,2379.9,0.03831104]
[1726429614520,4.20168,2380.0,2379.9,0.03831104]
[1726429614930,0.2729768,2380.0,2379.9,0.03831104]
[1726429615250,4.20133,2380.2,2379.9,0.03831104]
[1726429615553,0.2729768,2380.0,2379.9,0.03831104]
[1726429615846,4.20133,2380.2,2380.0,2.4018]
[1726429627113,0.27285579,2380.1,2380.0,2.4018]
[1726429627492,0.27285579,2380.1,2379.9,0.03831104]
[1726429628916,4.20168,2380.0,2379.9,0.03831104]
[1726429629266,4.47450755,2380.0,2379.9,0.03831104]
[1726429635594,8.67618755,2380.0,2379.9,0.03831104]
[1726429636809,4.47450755,2380.0,2379.9,2.31261104]
[1726429637523,4.47450755,2380.0,2379.9,2.54387214]
[1726429637524,0.27282755,2380.0,2379.9,2.54387214]
[1726429637687,2.0,2380.3,2380.0,0.55]
[1726429637891,2.0,2380.3,2380.1,3.15714176]
[1726429638087,2.0,2380.3,2380.2,2.77744036]
[1726429645297,2.21832853,2380.3,2380.2,2.77744036]
[1726429645882,6.41958853,2380.3,2380.0,0.88284176]
[1726429646135,6.41958853,2380.3,2379.9,1.36257293]
[1726429646136,4.20168,2380.0,2379.9,0.03831104]
[1726429646619,4.41995559,2380.0,2379.9,0.03831104]
[1726429649994,9.55868889,2380.0,2379.9,0.03831104]
[1726429650198,8.69653933,2380.0,2379.9,0.03831104]
[1726429652027,12.89821933,2380.0,2379.9,0.03831104]
[1726429657743,12.89821933,2380.0,2379.2,0.03928]
[1726429657744,4.20291,2379.3,2379.2,0.03928]
[1726429658035,5.26125994,2379.3,2379.2,0.03928]
[1726429658248,5.26125994,2379.3,2379.2,2.31358]
[1726429658249,0.21779494,2379.3,2379.2,2.31358]
[1726429658392,11.5719,2379.9,2379.2,2.31358]
[1726429658596,4.2019,2379.9,2379.4,2.2743]
[1726429658810,4.20223,2379.7,2379.4,2.2743]
[1726429659225,0.20986899,2379.6,2379.4,2.2743]
[1726429659439,0.20986899,2379.6,2379.5,2.66197016]
[1726429659603,0.20986899,2379.6,2379.5,4.65853361]
[1726429659947,11.57143,2380.2,2379.6,2.2743]
[1726429662538,11.57143,2380.2,2379.8,2.2743]
[1726429662539,7.37,2380.2,2379.8,2.2743]
[1726429662710,7.37,2380.2,2379.6,3.0]
[1726429662711,4.20106,2380.4,2379.9,2.50173]
[1726429662902,4.20106,2380.4,2379.9,2.2743]
[1726429663297,15.7715,2380.6,2380.1,2.2743]
[1726429663546,4.20082,2380.5,2380.2,0.23583253]
[1726429663750,4.20082,2380.5,2380.1,2.2743]
[1726429664216,4.20073,2380.6,2380.1,2.2743]
[1726429668575,4.20032,2380.8,2380.1,2.2743]
[1726429668815,4.27522374,2380.8,2380.1,2.2743]
[1726429669173,4.20056,2380.7,2380.1,2.2743]
[1726429671867,0.20792334,2380.2,2380.1,2.2743]
[1726429672072,4.20056,2380.7,2380.1,2.2743]
[1726429672295,0.20792334,2380.2,2380.1,2.2743]
[1726429672506,4.20056,2380.7,2380.1,2.2743]
[1726429672703,11.5701,2380.9,2380.2,2.50173]
[1726429672903,11.5701,2380.9,2380.2,2.8243]
[1726429672904,7.37,2380.9,2380.2,2.8243]
[1726429673118,4.20036,2380.8,2380.2,2.8243]
[1726429673319,8.47570374,2380.8,2380.2,2.2743]
[1726429673635,8.4008,2380.8,2380.2,2.2743]
[1726429674723,7.37,2380.9,2380.2,2.2743]
[1726429674944,1.25,2380.3,2380.2,10.68088272]
[1726429675109,1.25,2380.3,2380.2,11.1738309]
[1726429676748,7.37,2380.9,2380.7,2.4536]
[1726429676899,8.39859,2381.4,2380.7,2.3856]
[1726429676900,11.56925,2381.4,2380.7,2.3856]
[1726429677100,4.19925,2381.4,2380.8,0.29356]
[1726429677405,4.27441374,2381.3,2380.8,0.29356]
[1726429677704,4.27441374,2381.3,2380.7,2.3856]
[1726429678297,4.27456374,2381.2,2380.7,2.3856]
[1726429678500,4.19966,2381.2,2380.7,2.3856]
[1726429680150,4.19981,2381.1,2380.7,2.3856]
[1726429680444,4.27471374,2381.1,2380.7,2.3856]
[1726429681749,4.19966,2381.2,2380.7,2.3856]
[1726429681908,8.39938,2381.2,2380.7,2.3856]
[1726429682101,9.24680837,2381.2,2380.7,2.3856]
[1726429682343,5.04708837,2381.2,2380.7,2.3856]
[1726429683841,4.19966,2381.2,2380.7,2.3856]
[1726429685733,4.19942,2381.3,2380.7,2.3856]
[1726429687161,11.56873,2381.7,2380.3,3.0]
[1726429687162,0.17537638,2381.2,2380.5,3.0036]
[1726429687308,8.39856,2381.4,2380.5,3.0036]
[1726429687532,0.17542217,2381.1,2380.5,3.0036]
[1726429687745,8.39855,2381.4,2380.7,2.4536]
[1726429687746,4.19922,2381.4,2380.7,2.4536]
[1726429687972,0.17543049,2381.0,2380.7,2.4536]
[1726429688157,4.19922,2381.4,2380.7,2.4536]
[1726429688365,0.17543049,2380.9,2380.7,2.4536]
[1726429688691,11.56922,2381.4,2380.8,0.28374553]
[1726429688826,4.19922,2381.4,2380.7,2.4536]
[1726429690464,8.39857,2381.4,2380.7,2.4536]
[1726429690770,8.39857,2381.4,2380.7,2.79234553]
[1726429691966,4.27431374,2381.3,2380.7,2.79234553]
[1726429692182,4.27447374,2381.2,2380.7,2.4536]
[1726429692967,4.19981,2381.1,2380.7,2.4536]
[1726429693178,0.07490374,2381.1,2380.0,2.4536]
[1726429693332,4.20047,2380.7,2380.0,2.4536]
[1726429693531,4.20037,2380.8,2380.0,2.4536]
[1726429693730,4.27527374,2380.8,2380.0,2.4536]
[1726429694438,4.27527374,2380.8,2379.7,0.87938573]
[1726429694439,4.27527374,2380.8,2380.2,2.4716]
[1726429694626,4.20037,2380.8,2380.3,0.30216]
[1726429694828,4.20048,2380.7,2380.2,2.4716]
[1726429695042,4.27527374,2380.8,2380.2,2.4716]
[1726429695443,0.07490374,2380.7,2380.2,2.4716]
[1726429695647,4.27544374,2380.7,2380.2,2.77376]
[1726429695848,4.27544374,2380.7,2380.2,2.4716]
[1726429696178,4.20037,2380.8,2380.2,2.4716]
[1726429696179,8.4008,2380.8,2380.2,2.4716]
[1726429697779,8.40075,2380.8,2380.2,2.4716]
[1726429697950,8.40075,2380.8,2380.2,2.71876]
[1726429702006,0.17527644,2380.7,2380.2,2.71876]
[1726429704890,0.17527644,2380.7,2380.4,2.4716]
[1726429705087,4.20011,2380.9,2380.4,2.4716]
[1726429705406,0.17527644,2380.6,2380.4,2.4716]
[1726429705709,0.17527644,2380.5,2380.2,2.4716]
[1726429705866,0.17527644,2380.5,2379.9,2.4716]
[1726429705867,4.20115,2380.3,2379.9,2.4716]
[1726429706062,0.17513903,2380.2,2379.9,2.4716]
[1726429706693,4.20115,2380.3,2379.9,2.4716]
[1726429706906,0.17364099,2380.2,2379.9,2.4716]
[1726429707286,4.20115,2380.3,2379.9,2.4716]
[1726429707603,0.17364099,2380.2,2379.9,2.4716]
[1726429707964,4.20115,2380.3,2379.9,2.4716]
[1726429708160,0.17352422,2380.1,2379.9,2.4716]
[1726429708364,4.20115,2380.3,2379.9,2.4716]
[1726429708608,0.17352422,2380.0,2379.9,2.4716]
[1726429708808,8.4024,2380.3,2379.9,2.4716]
[1726429708959,0.17352422,2380.0,2379.9,2.4716]
[1726429709477,4.20142,2380.2,2379.9,2.4716]
[1726429709678,0.17352422,2380.1,2379.9,2.4716]
[1726429709873,4.37504422,2380.1,2379.9,2.4716]
[1726429710892,8.57668422,2380.1,2379.9,2.4716]
[1726429711093,4.20168,2380.0,2379.9,2.4716]
[1726429711608,4.20218,2379.8,2379.6,2.4716]
[1726429711997,4.20258,2379.5,2379.3,2.4716]
[1726429712322,4.20258,2379.5,2379.2,0.03928]
[1726429712323,4.20291,2379.3,2379.2,0.03928]
[1726429712483,8.40582,2379.3,2379.2,0.03928]
[1726429712683,4.45106678,2379.3,2379.2,0.03928]
[1726429712882,8.65397678,2379.3,2379.2,0.03928]
[1726429714802,4.37616304,2379.3,2379.2,2.47948]
[1726429714979,0.17325304,2379.3,2379.2,2.47948]
[1726429718199,0.17325304,2379.3,2379.2,2.727428]
[1726429718399,8.405,2379.6,2379.2,2.727428]
[1726429718625,0.16100503,2379.3,2379.2,2.727428]
[1726429718838,8.405,2379.6,2379.2,2.727428]
[1726429719042,0.1611058,2379.3,2379.2,2.727428]
[1726429719203,8.405,2379.6,2379.2,2.727428]
[1726429719858,0.16120659,2379.5,2379.2,2.727428]
[1726429721843,4.20277,2379.4,2379.2,2.727428]
[1726429722016,4.20277,2379.4,2379.2,2.47948]
[1726429722215,0.16120239,2379.3,2379.2,2.47948]
[1726429723837,4.20248,2379.6,2379.2,2.47948]
[1726429724020,0.16120239,2379.3,2379.2,2.47948]
[1726429724542,4.20248,2379.6,2379.2,2.47948]
[1726429724747,0.16120239,2379.3,2379.2,2.47948]
[1726429724953,4.20248,2379.6,2379.2,2.727428]
[1726429725175,0.16120239,2379.3,2379.2,2.727428]
[1726429725472,4.20248,2379.6,2379.2,2.727428]
[1726429725685,0.16120239,2379.3,2379.2,2.727428]
[1726429725848,8.40502,2379.6,2379.2,2.727428]
[1726429726171,8.40497,2379.6,2379.2,2.727428]
[1726429726383,0.16120239,2379.5,2379.2,2.727428]
[1726429730038,0.16120239,2379.5,2379.4,2.4402]
[1726429730442,4.20212,2379.8,2379.4,2.4402]
[1726429730688,0.15586257,2379.5,2379.4,2.4402]
[1726429730884,4.20212,2379.8,2379.4,2.4402]
[1726429731482,0.15586257,2379.7,2379.6,2.4402]
[1726429731843,4.20155,2380.1,2379.6,2.4402]
[1726429732081,0.15590877,2379.7,2379.6,2.4402]
[1726429732243,4.20155,2380.1,2379.6,2.68422]
[1726429732453,0.15590877,2379.7,2379.6,2.68422]
[1726429732652,4.20155,2380.1,2379.6,2.68422]
[1726429732849,0.15590877,2379.7,2379.6,2.68422]
[1726429733054,4.20155,2380.1,2379.6,2.68422]
[1726429733263,0.15590877,2379.7,2379.6,2.68422]
[1726429733434,4.20155,2380.1,2379.6,2.68422]
[1726429733638,0.15590877,2379.7,2379.6,2.68422]
[1726429733840,4.20155,2380.1,2379.6,2.68422]
[1726429734056,0.15590877,2379.7,2379.6,2.68422]
[1726429734250,4.20155,2380.1,2379.6,2.68422]
[1726429734479,0.15590877,2379.7,2379.6,2.4402]
[1726429734686,4.20155,2380.1,2379.6,2.4402]
[1726429734888,0.15590877,2379.7,2379.6,2.4402]
[1726429735059,4.20155,2380.1,2379.6,2.4402]
[1726429735254,0.15106352,2379.7,2379.6,2.68422]
[1726429735759,4.20148,2380.2,2379.6,2.68422]
[1726429735943,0.15106352,2379.7,2379.6,2.68422]
[1726429736280,4.20108,2380.4,2379.6,2.68422]
[1726429736452,8.40217,2380.4,2379.8,2.327]
[1726429736655,4.20108,2380.4,2379.8,2.327]
[1726429737385,8.40215,2380.4,2379.8,2.327]
[1726429737595,4.20107,2380.4,2379.8,2.327]
[1726429737785,4.20125,2380.3,2380.0,2.327]
[1726429742161,4.27634374,2380.2,2380.0,2.327]
[1726429742467,4.20159,2380.1,2379.5,2.327]
[1726429742659,4.20159,2380.1,2379.7,2.327]
[1726429743300,4.2017,2380.0,2379.7,2.327]
[1726429743657,0.15135038,2379.9,2379.7,2.327]
[1726429744336,0.15135038,2379.9,2379.7,2.89849386]
[1726429745746,4.35332038,2379.9,2379.7,2.327]
[1726429749658,4.20203,2379.8,2379.7,2.327]
[1726429750118,4.34829458,2379.8,2379.7,2.327]